bitfinex/quotes_SOLUSD_20250607
["timestamp","ask_amount","ask_price","bid_price","bid_amount"]
[1749288259019,10.63758223,152.26,152.24,39.7]
[1749288259216,17.20503351,152.27,152.24,39.7]
[1749288263224,13.37489661,152.27,152.24,39.7]
[1749288265324,6.80744533,152.26,152.24,39.7]
[1749288266820,13.37526576,152.26,152.24,39.7]
[1749288270284,6.80744533,152.25,152.22,10.12]
[1749288270444,6.80744533,152.23,152.22,49.82]
[1749288270623,6.80744533,152.23,152.22,10.12]
[1749288270930,6.80744533,152.24,152.22,10.12]
[1749288271809,6.80744533,152.25,152.22,10.12]
[1749288272006,6.80744533,152.28,152.23,6.80744533]
[1749288272635,13.37386466,152.29,152.25,6.80744533]
[1749288272953,13.37386466,152.29,152.26,39.72]
[1749288275326,17.20032478,152.29,152.26,39.72]
[1749288276426,10.63390545,152.29,152.26,39.72]
[1749288277441,17.20033558,152.29,152.26,39.72]
[1749288277638,10.63390545,152.29,152.26,39.72]
[1749288279829,17.20032934,152.29,152.26,39.72]
[1749288280147,10.63390545,152.28,152.26,39.72]
[1749288284034,17.20032934,152.29,152.26,39.72]
[1749288288037,10.63390545,152.27,152.26,39.72]
[1749288288760,6.56771312,152.26,152.24,39.7]
[1749288288941,10.63390545,152.25,152.24,39.7]
[1749288289429,10.63390545,152.25,152.22,10.12]
[1749288289430,10.63390545,152.25,152.22,49.82]
[1749288289625,10.63390545,152.24,152.22,49.82]
[1749288290038,10.63390545,152.24,152.22,10.12]
[1749288290846,10.63390545,152.25,152.22,10.12]
[1749288292531,10.63390545,152.24,152.22,10.12]
[1749288293757,10.63390545,152.25,152.22,10.12]
[1749288294351,6.56745988,152.27,152.22,10.12]
[1749288294531,10.63390545,152.25,152.22,10.12]
[1749288295141,6.80905912,152.25,152.22,10.12]
[1749288295566,6.80905912,152.25,152.22,16.68935205]
[1749288298845,6.80905912,152.25,152.23,39.72]
[1749288299758,6.80905912,152.26,152.23,39.72]
[1749288299950,6.80905912,152.28,152.23,53.09790413]
[1749288300146,6.80905912,152.28,152.24,6.80905912]
[1749288302058,6.80905912,152.28,152.23,46.28884501]
[1749288302059,6.80905912,152.28,152.23,53.09790413]
[1749288305769,6.80905912,152.28,152.24,6.80905912]
[1749288306654,6.80905912,152.28,152.24,13.37752867]
[1749288310867,6.80905912,152.29,152.24,13.37752867]
[1749288311070,6.80905912,152.29,152.25,6.80905912]
[1749288311853,13.3755607,152.29,152.25,6.80905912]
[1749288312068,13.3755607,152.29,152.24,13.37752867]
[1749288312980,13.3755607,152.29,152.25,6.80905912]
[1749288313988,13.3755607,152.29,152.24,13.37752867]
[1749288314357,13.3755607,152.29,152.25,10.12]
[1749288315852,6.80905912,152.28,152.25,10.12]
[1749288317588,6.56650158,152.29,152.25,10.12]
[1749288317758,13.3755607,152.29,152.25,10.12]
[1749288320158,13.3755607,152.29,152.25,39.7]
[1749288322856,6.80905912,152.29,152.25,53.07714619]
[1749288323068,6.80905912,152.3,152.26,6.80905912]
[1749288324383,6.80905912,152.3,152.26,13.376483]
[1749288325587,6.80905912,152.31,152.26,13.376483]
[1749288327773,6.56512605,152.32,152.26,13.376483]
[1749288327974,6.80905912,152.31,152.27,6.80905912]
[1749288329383,6.80905912,152.31,152.27,13.37619459]
[1749288331378,6.80905912,152.31,152.27,6.80905912]
[1749288332474,6.80905912,152.31,152.27,13.37621699]
[1749288334295,13.3747603,152.31,152.27,6.80905912]
[1749288334498,6.80905912,152.3,152.25,46.26803769]
[1749288334796,6.80905912,152.3,152.25,53.07709681]
[1749288335682,13.37522712,152.3,152.25,53.07709681]
[1749288336299,6.80905912,152.29,152.24,10.12]
[1749288336487,6.80905912,152.28,152.26,39.7]
[1749288337817,6.80905912,152.27,152.24,49.82]
[1749288338498,13.3759906,152.28,152.24,49.82]
[1749288341199,13.3759906,152.28,152.24,56.62905912]
[1749288341605,13.3759906,152.28,152.24,49.82]
[1749288342800,6.80905912,152.28,152.24,56.38854729]
[1749288343002,8.31435912,152.29,152.24,63.19760641]
[1749288344690,14.88081795,152.29,152.24,63.19760641]
[1749288346215,8.31435912,152.29,152.25,6.80905912]
[1749288348013,13.37518247,152.3,152.25,6.80905912]
[1749288348316,13.37518247,152.3,152.25,13.37703956]
[1749288349081,6.80905912,152.29,152.25,13.37703956]
[1749288350010,13.3755255,152.29,152.24,49.82]
[1749288350214,6.80905912,152.28,152.24,49.82]
[1749288350691,6.80905912,152.28,152.24,56.62905912]
[1749288352299,13.37602585,152.28,152.24,56.62905912]
[1749288353186,6.56696673,152.28,152.24,56.62905912]
[1749288353510,6.80905912,152.28,152.24,56.62905912]
[1749288354104,6.80905912,152.28,152.24,63.19758613]
[1749288354514,6.80905912,152.28,152.24,56.62905912]
[1749288356106,6.56677943,152.29,152.24,56.62905912]
[1749288356314,6.80905912,152.28,152.24,56.62905912]
[1749288357521,13.37596276,152.28,152.24,56.62905912]
[1749288358733,4.90288484,152.29,152.25,6.80905912]
[1749288358734,6.80905912,152.29,152.25,6.80905912]
[1749288359329,11.71194396,152.3,152.25,6.80905912]
[1749288359624,13.37559847,152.29,152.24,63.19761137]
[1749288360622,6.80905912,152.3,152.25,6.80905912]
[1749288362036,13.37504782,152.3,152.25,13.376864]
[1749288366021,18.27717673,152.32,152.27,6.80905912]
[1749288366335,18.27717673,152.32,152.28,39.7]
[1749288366515,13.37429189,152.32,152.28,39.7]
[1749288366716,6.80905912,152.31,152.28,39.7]
[1749288368043,6.56598818,152.3,152.28,39.7]
[1749288369218,6.56598818,152.3,152.28,38.7]
[1749288372943,13.37479821,152.31,152.28,38.7]
[1749288373124,6.80905912,152.31,152.28,38.7]
[1749288375812,13.37464365,152.31,152.28,38.7]
[1749288377543,6.80905912,152.31,152.28,38.7]
[1749288379325,13.37467433,152.31,152.28,38.7]
[1749288379641,6.80905912,152.31,152.28,38.7]
[1749288381356,18.27719183,152.32,152.28,38.7]
[1749288381822,13.37430699,152.32,152.28,38.7]
[1749288383922,6.80905912,152.32,152.28,52.07588949]
[1749288387740,11.71194396,152.35,152.3,6.80905912]
[1749288387924,4.90288484,152.36,152.31,6.80905912]
[1749288388124,11.71194396,152.36,152.32,39.68]
[1749288388546,6.80905912,152.36,152.32,39.68]
[1749288388722,13.37247635,152.36,152.32,39.68]
[1749288389445,11.71194396,152.36,152.32,53.05409362]
[1749288389654,11.71194396,152.37,152.33,6.80905912]
[1749288389824,11.46557682,152.38,152.33,6.80905912]
[1749288390029,6.80905912,152.37,152.33,6.80905912]
[1749288391139,13.37218374,152.37,152.33,6.80905912]
[1749288392338,13.37218374,152.37,152.32,46.48905912]
[1749288393754,6.56312462,152.37,152.33,6.80905912]
[1749288393963,13.37218374,152.37,152.33,6.80905912]
[1749288395551,6.80905912,152.37,152.33,6.80905912]
[1749288396468,6.80905912,152.38,152.33,6.80905912]
[1749288398369,6.56297171,152.37,152.33,6.80905912]
[1749288400469,6.80905912,152.37,152.33,6.80905912]
[1749288402456,13.37241465,152.37,152.33,6.80905912]
[1749288402656,13.37241465,152.37,152.32,46.48905912]
[1749288402960,6.80905912,152.36,152.32,46.48905912]
[1749288403649,13.37241465,152.37,152.32,46.48905912]
[1749288410677,6.56335553,152.37,152.33,6.80905912]
[1749288410853,13.37241465,152.37,152.33,6.80905912]
[1749288411880,6.80905912,152.37,152.33,6.80905912]
[1749288412968,6.80905912,152.37,152.33,16.90905912]
[1749288413681,13.37215586,152.37,152.33,16.90905912]
[1749288416158,6.56309674,152.37,152.33,16.90905912]
[1749288416359,13.37215586,152.37,152.33,16.90905912]
[1749288425882,13.37215586,152.37,152.33,10.1]
[1749288427385,13.37215586,152.37,152.32,56.58905912]
[1749288428698,18.2750407,152.37,152.32,56.58905912]
[1749288428898,13.37215586,152.37,152.32,56.58905912]
[1749288429394,18.2750407,152.37,152.32,56.58905912]
[1749288429696,13.37215586,152.37,152.32,56.58905912]
[1749288430196,18.2750407,152.37,152.32,56.58905912]
[1749288430401,13.37215586,152.37,152.32,56.58905912]
[1749288430903,4.90288484,152.36,152.32,56.58905912]
[1749288431076,11.4663513,152.36,152.32,56.58905912]
[1749288431585,11.4765015,152.36,152.32,56.58905912]
[1749288431785,6.56346646,152.36,152.32,56.58905912]
[1749288431993,11.47642157,152.36,152.32,56.58905912]
[1749288432593,6.56346646,152.36,152.32,56.58905912]
[1749288434784,13.37214873,152.37,152.32,63.15417271]
[1749288435201,13.37214873,152.37,152.32,56.58905912]
[1749288435439,4.91660041,152.36,152.32,56.58905912]
[1749288435595,13.37214873,152.37,152.32,56.58905912]
[1749288435904,4.91677809,152.36,152.32,56.58905912]
[1749288436103,13.37214873,152.37,152.32,56.58905912]
[1749288436281,4.91683866,152.36,152.32,63.15411226]
[1749288436483,6.80905912,152.37,152.32,63.15411226]
[1749288436800,4.91683545,152.36,152.32,56.58905912]
[1749288437101,13.37234746,152.37,152.32,56.58905912]
[1749288437308,6.80905912,152.38,152.32,63.15395606]
[1749288437509,4.9168619,152.37,152.32,63.15395606]
[1749288437694,4.9168619,152.36,152.32,63.15395606]
[1749288438009,4.9168619,152.37,152.34,6.80905912]
[1749288438184,11.72592102,152.4,152.36,6.80905912]
[1749288438503,4.9168619,152.39,152.37,39.66]
[1749288438706,4.9168619,152.38,152.37,39.66]
[1749288438907,4.9168619,152.39,152.37,46.46905912]
[1749288439107,4.91719672,152.4,152.37,39.66]
[1749288439288,15.01794781,152.41,152.37,49.76]
[1749288439491,4.9149242,152.4,152.37,49.76]
[1749288439683,15.01794781,152.41,152.37,49.76]
[1749288439889,4.91489053,152.4,152.37,49.76]
[1749288440095,15.01794781,152.41,152.37,49.76]
[1749288440304,4.91304644,152.4,152.37,49.76]
[1749288442205,8.20888869,152.41,152.37,49.76]
[1749288442409,4.91304644,152.4,152.37,49.76]
[1749288442610,15.01794781,152.41,152.37,49.76]
[1749288442788,19.93099425,152.41,152.37,49.76]
[1749288442989,15.01794781,152.41,152.37,49.76]
[1749288443211,19.93099425,152.41,152.37,49.76]
[1749288443410,15.01794781,152.41,152.37,49.76]
[1749288443615,19.93099425,152.41,152.37,49.76]
[1749288443797,15.01794781,152.41,152.37,49.76]
[1749288443997,19.93099425,152.41,152.37,49.76]
[1749288444200,8.20888869,152.41,152.37,56.56905912]
[1749288444387,6.80905912,152.4,152.37,49.76]
[1749288445012,6.80905912,152.38,152.32,96.06495757]
[1749288445211,6.80905912,152.37,152.33,56.56905912]
[1749288445918,11.72210556,152.38,152.33,56.56905912]
[1749288446090,13.37199343,152.38,152.33,56.56905912]
[1749288446590,4.91304644,152.38,152.34,6.80905912]
[1749288446790,6.80905912,152.39,152.34,6.80905912]
[1749288446990,11.72210556,152.39,152.35,6.80905912]
[1749288449407,18.2842444,152.39,152.35,6.80905912]
[1749288449588,13.37119796,152.39,152.35,6.80905912]
[1749288449789,18.2842444,152.39,152.35,6.80905912]
[1749288450016,13.37119796,152.39,152.35,6.80905912]
[1749288450319,18.2842444,152.39,152.35,6.80905912]
[1749288450524,13.37119796,152.39,152.35,6.80905912]
[1749288450698,18.2842444,152.39,152.35,6.80905912]
[1749288450897,13.37119796,152.39,152.35,6.80905912]
[1749288451092,18.2842444,152.39,152.35,6.80905912]
[1749288451295,13.37119796,152.39,152.35,6.80905912]
[1749288452096,18.2842444,152.39,152.35,6.80905912]
[1749288452292,6.56213884,152.39,152.35,6.80905912]
[1749288452525,18.2842444,152.39,152.35,6.80905912]
[1749288452723,13.37119796,152.39,152.35,6.80905912]
[1749288453023,18.2842444,152.39,152.35,6.80905912]
[1749288453202,13.37119796,152.39,152.35,6.80905912]
[1749288454214,18.2842444,152.39,152.35,6.80905912]
[1749288454412,13.37119796,152.39,152.35,6.80905912]
[1749288454605,18.2842444,152.39,152.35,6.80905912]
[1749288454805,13.37119796,152.39,152.35,6.80905912]
[1749288455112,18.2842444,152.39,152.35,6.80905912]
[1749288455298,13.37119796,152.39,152.34,6.80905912]
[1749288455499,6.80905912,152.38,152.34,6.80905912]
[1749288455899,6.80905912,152.38,152.33,63.13359562]
[1749288456094,11.72210556,152.38,152.33,63.13359562]
[1749288456714,18.28479218,152.38,152.33,23.47359562]
[1749288456930,13.37174574,152.38,152.34,39.66]
[1749288457301,18.28479218,152.38,152.34,39.66]
[1749288457501,13.37174574,152.38,152.34,39.66]
[1749288457953,18.28479218,152.38,152.34,39.66]
[1749288458228,13.37174574,152.38,152.34,39.66]
[1749288458604,18.28479218,152.38,152.34,46.46905912]
[1749288458806,13.37174574,152.38,152.34,46.46905912]
[1749288459215,18.28479218,152.38,152.34,46.46905912]
[1749288459418,13.37174574,152.38,152.34,46.46905912]
[1749288459823,11.72210556,152.38,152.34,53.03325349]
[1749288460030,13.37128116,152.39,152.34,53.03325349]
[1749288460209,18.2843276,152.39,152.34,53.03325349]
[1749288460409,13.37128116,152.39,152.34,53.03325349]
[1749288460609,18.2843276,152.39,152.34,53.03325349]
[1749288460833,13.37128116,152.39,152.34,53.03325349]
[1749288461037,18.2843276,152.39,152.34,53.03325349]
[1749288461211,13.37128116,152.39,152.34,53.03325349]
[1749288461411,18.2843276,152.39,152.34,53.03325349]
[1749288461734,13.37128116,152.39,152.34,53.03325349]
[1749288461927,18.2843276,152.39,152.34,53.03325349]
[1749288462124,13.37128116,152.39,152.34,53.03325349]
[1749288462434,18.2843276,152.39,152.34,53.03325349]
[1749288462630,13.37128116,152.39,152.34,53.03325349]
[1749288462821,18.2843276,152.39,152.34,53.03325349]
[1749288463023,13.37128116,152.39,152.34,53.03325349]
[1749288463220,18.27915742,152.39,152.34,53.03325349]
[1749288463425,13.37128116,152.39,152.34,53.03325349]
[1749288463638,18.27915742,152.39,152.34,53.03325349]
[1749288463822,13.37128116,152.39,152.34,53.03325349]
[1749288464014,18.27915742,152.39,152.34,53.03325349]
[1749288464214,13.37128116,152.39,152.34,53.03325349]
[1749288464410,18.27915742,152.39,152.34,53.03325349]
[1749288464617,13.37128116,152.39,152.34,53.03325349]
[1749288464843,4.90787626,152.39,152.35,6.80905912]
[1749288465013,4.90787626,152.39,152.36,6.80905912]
[1749288465842,6.80905912,152.4,152.36,6.80905912]
[1749288466334,13.11700685,152.41,152.37,6.80905912]
[1749288466335,1.6476,152.41,152.37,6.80905912]
[1749288466632,18.27742197,152.43,152.39,6.80905912]
[1749288466835,18.27694716,152.44,152.4,6.80905912]
[1749288467236,14.92511047,152.45,152.41,6.80905912]
[1749288467417,4.90787626,152.46,152.43,6.80905912]
[1749288467746,19.50280328,152.47,152.43,6.80905912]
[1749288467916,24.41067954,152.47,152.43,6.80905912]
[1749288468123,19.50280328,152.47,152.43,6.80905912]
[1749288468330,19.50280328,152.47,152.42,46.46905912]
[1749288468847,6.80905912,152.47,152.42,53.02975719]
[1749288469027,6.80905912,152.47,152.43,16.90905912]
[1749288469343,13.36741351,152.48,152.43,16.90905912]
[1749288469930,6.55835439,152.48,152.44,6.80905912]
[1749288470229,13.36741351,152.48,152.44,6.80905912]
[1749288470434,13.36741351,152.48,152.43,16.90905912]
[1749288470914,6.80905912,152.47,152.43,16.90905912]
[1749288471317,6.80905912,152.47,152.43,10.1]
[1749288471915,13.3680967,152.47,152.43,10.1]
[1749288476646,13.3680967,152.47,152.43,16.90905912]
[1749288481334,6.55903758,152.47,152.43,16.90905912]
[1749288489567,6.80905912,152.48,152.44,6.80905912]
[1749288489732,14.92368182,152.49,152.44,6.80905912]
[1749288491151,1.5565,152.49,152.44,13.36891242]
[1749288491348,8.36555912,152.49,152.45,6.80905912]
[1749288492657,14.92347597,152.49,152.45,6.80905912]
[1749288492837,14.92347597,152.49,152.45,5.49404912]
[1749288494157,6.80905912,152.48,152.44,6.80905912]
[1749288494464,8.11441685,152.49,152.43,10.1]
[1749288494465,6.80905912,152.47,152.43,10.1]
[1749288495357,6.80905912,152.46,152.44,39.64]
[1749288495855,6.55952771,152.45,152.44,39.64]
[1749288496158,13.36833168,152.46,152.44,39.64]
[1749288496362,13.36833168,152.46,152.43,10.1]
[1749288496560,13.36833168,152.46,152.43,49.74]
[1749288496747,6.55927256,152.46,152.43,56.54905912]
[1749288501165,6.55927256,152.46,152.43,49.74]
[1749288501754,6.80905912,152.46,152.43,49.74]
[1749288502747,13.36831897,152.46,152.43,49.74]
[1749288504774,6.55823714,152.48,152.43,49.74]
[1749288504965,6.80905912,152.47,152.43,49.74]
[1749288505677,6.80905912,152.44,152.43,10.1]
[1749288506674,13.36901713,152.44,152.43,10.1]
[1749288508150,13.36901713,152.44,152.41,39.64]
[1749288508379,6.56081879,152.42,152.41,39.64]
[1749288509076,6.56081879,152.42,152.39,10.1]
[1749288509279,6.80905912,152.41,152.39,10.1]
[1749288509485,6.80905912,152.41,152.39,49.74]
[1749288509979,6.80905912,152.41,152.39,10.1]
[1749288510385,6.56167979,152.4,152.39,10.1]
[1749288510869,6.56167979,152.4,152.39,49.74]
[1749288511694,18.26890027,152.4,152.33,39.64]
[1749288511987,6.80905912,152.37,152.33,46.44905912]
[1749288512471,13.37226164,152.37,152.33,46.44905912]
[1749288513381,17.18629287,152.37,152.33,39.64]
[1749288516664,17.18629287,152.37,152.34,39.64]
[1749288519586,17.18629287,152.37,152.32,10.62309035]
[1749288519889,17.18629287,152.37,152.33,39.66]
[1749288522673,10.62309035,152.36,152.33,39.66]
[1749288526297,10.62309035,152.36,152.33,49.76]
[1749288533220,6.79895821,152.36,152.33,49.76]
[1749288533809,6.56211037,152.39,152.33,56.32464791]
[1749288533985,6.79895821,152.37,152.33,56.32464791]
[1749288534907,6.79895821,152.37,152.33,63.12360612]
[1749288541315,6.79895821,152.38,152.34,6.79895821]
[1749288541514,8.07181636,152.41,152.35,6.79895821]
[1749288541815,6.79895821,152.4,152.35,6.79895821]
[1749288542398,6.79895821,152.4,152.36,6.56340246]
[1749288542599,6.79895821,152.4,152.37,39.66]
[1749288543315,6.79895821,152.39,152.37,39.66]
[1749288553110,12.95180011,152.41,152.37,39.66]
[1749288553308,6.79895821,152.39,152.37,39.66]
[1749288553825,6.79895821,152.39,152.37,46.22296152]
[1749288553999,6.79895821,152.4,152.37,39.66]
[1749288555019,6.79895821,152.4,152.37,46.22295564]
[1749288559916,6.79895821,152.4,152.37,39.66]
[1749288560927,6.79895821,152.4,152.37,46.22295801]
[1749288563924,1.5104,152.41,152.37,46.22295801]
[1749288564124,8.30935821,152.41,152.37,46.22295801]
[1749288564634,6.79895821,152.4,152.37,39.66]
[1749288567317,13.36076145,152.4,152.37,39.66]
[1749288567944,6.79895821,152.4,152.37,39.66]
[1749288573827,6.79895821,152.39,152.37,39.66]
[1749288574245,6.79895821,152.38,152.36,10.1]
[1749288574446,6.79895821,152.38,152.36,49.74]
[1749288575433,13.36172078,152.38,152.36,49.74]
[1749288578449,6.79895821,152.37,152.36,49.74]
[1749288579846,6.79895821,152.37,152.36,39.64]
[1749288584337,13.36172078,152.38,152.36,39.64]
[1749288584538,18.27614616,152.38,152.36,39.64]
[1749288584749,13.36172078,152.38,152.36,39.64]
[1749288584949,18.27614616,152.38,152.33,23.46362861]
[1749288585124,13.36172078,152.38,152.35,39.66]
[1749288585328,18.27614616,152.38,152.35,39.66]
[1749288585569,13.36172078,152.38,152.35,39.66]
[1749288585755,18.27614616,152.38,152.35,39.66]
[1749288586058,13.36172078,152.38,152.35,39.66]
[1749288586250,18.27614616,152.38,152.35,39.66]
[1749288586556,13.36172078,152.38,152.35,39.66]
[1749288586759,18.27614616,152.38,152.35,39.66]
[1749288587056,13.36172078,152.38,152.35,39.66]
[1749288588434,6.79895821,152.37,152.35,39.66]
[1749288589565,11.71203674,152.37,152.35,39.66]
[1749288590258,11.71203674,152.37,152.34,39.66]
[1749288590455,6.79895821,152.37,152.34,39.66]
[1749288590660,13.36231934,152.37,152.34,39.66]
[1749288591565,6.79895821,152.36,152.34,39.66]
[1749288594240,6.79895821,152.36,152.33,10.1]
[1749288594445,6.79895821,152.36,152.34,39.66]
[1749288594853,13.36231934,152.37,152.34,39.66]
[1749288595631,6.79895821,152.37,152.34,39.66]
[1749288596452,6.79895821,152.38,152.34,46.22420425]
[1749288598739,6.79895821,152.38,152.34,53.02316246]
[1749288601181,4.91307853,152.41,152.36,6.79895821]
[1749288601347,6.44116157,152.43,152.34,46.22420425]
[1749288601348,6.79895821,152.42,152.38,6.79895821]
[1749288601542,6.79895821,152.42,152.39,39.66]
[1749288605752,11.71203674,152.43,152.39,46.22207205]
[1749288605952,6.79895821,152.43,152.39,46.22207205]
[1749288606669,6.79895821,152.43,152.39,53.02103026]
[1749288606981,8.37075821,152.44,152.39,53.02103026]
[1749288607355,6.79895821,152.45,152.41,6.79895821]
[1749288607777,6.79895821,152.46,152.41,6.79895821]
[1749288608650,6.79895821,152.46,152.42,6.56081879]
[1749288608846,6.79895821,152.46,152.43,39.64]
[1749288610974,6.79895821,152.47,152.43,52.99926336]
[1749288611183,6.79895821,152.47,152.43,63.09926336]
[1749288613461,8.37075821,152.48,152.43,63.09926336]
[1749288614072,6.79895821,152.47,152.43,63.09926336]
[1749288616987,6.79895821,152.48,152.43,63.09926336]
[1749288617177,32.55755093,152.5,152.43,56.30030515]
[1749288617386,6.79895821,152.49,152.44,6.79895821]
[1749288617978,6.79895821,152.49,152.45,6.55952771]
[1749288619977,6.79895821,152.49,152.45,13.35848592]
[1749288622390,6.79895821,152.49,152.45,6.79895821]
[1749288624190,6.79895821,152.49,152.45,13.35843848]
[1749288624769,6.79895821,152.49,152.45,6.79895821]
[1749288625287,13.35692306,152.49,152.45,6.79895821]
[1749288630625,6.55796485,152.49,152.45,6.79895821]
[1749288630802,13.35692306,152.49,152.45,6.79895821]
[1749288634078,6.79895821,152.48,152.44,6.79895821]
[1749288635396,13.35747893,152.48,152.44,6.79895821]
[1749288636278,13.35747893,152.48,152.45,39.62]
[1749288638304,6.79895821,152.46,152.43,39.62]
[1749288638510,6.79895821,152.45,152.42,49.72]
[1749288638683,13.35876189,152.45,152.42,49.72]
[1749288639607,6.55980368,152.45,152.42,49.72]
[1749288640007,6.55980368,152.45,152.42,56.51895821]
[1749288640798,6.55923938,152.46,152.42,56.51895821]
[1749288641106,13.35776971,152.47,152.42,63.0797653]
[1749288641321,8.09436706,152.48,152.43,6.79895821]
[1749288641481,13.35732527,152.48,152.44,6.79895821]
[1749288642684,39.35684798,152.49,152.45,6.79895821]
[1749288643025,39.35684798,152.49,152.44,6.79895821]
[1749288644114,13.35744008,152.48,152.44,6.79895821]
[1749288644800,6.79895821,152.47,152.43,6.79895821]
[1749288646007,13.35783627,152.47,152.43,6.79895821]
[1749288649804,18.2422716,152.48,152.44,6.79895821]
[1749288651609,13.3573364,152.48,152.44,6.79895821]
[1749288651808,13.3573364,152.48,152.44,16.89895821]
[1749288652294,18.26384855,152.48,152.44,10.1]
[1749288652703,13.3573364,152.48,152.44,10.1]
[1749288652891,11.46573828,152.47,152.44,10.1]
[1749288653212,11.46547654,152.47,152.44,10.1]
[1749288653804,13.35773056,152.47,152.44,10.1]
[1749288654615,4.90740098,152.46,152.44,10.1]
[1749288654795,13.35773056,152.47,152.44,10.1]
[1749288655001,4.90735574,152.46,152.44,10.1]
[1749288655195,4.90735473,152.46,152.44,10.1]
[1749288656191,11.70631294,152.45,152.44,10.1]
[1749288656699,18.26584065,152.45,152.4,10.1]
[1749288657010,6.79895821,152.42,152.4,10.1]
[1749288657323,6.79895821,152.42,152.4,49.72]
[1749288658098,13.35999895,152.42,152.4,49.72]
[1749288658409,6.79895821,152.41,152.4,49.72]
[1749288658614,6.79895821,152.41,152.4,10.1]
[1749288658815,11.70550209,152.41,152.36,10.08]
[1749288659129,6.79895821,152.39,152.37,39.62]
[1749288659633,6.79895821,152.38,152.36,10.08]
[1749288659839,6.79895821,152.38,152.37,39.62]
[1749288661322,6.79895821,152.39,152.36,49.7]
[1749288661525,6.79895821,152.4,152.36,56.49895821]
[1749288662018,6.79895821,152.4,152.36,63.06226502]
[1749288662216,6.79895821,152.4,152.36,56.49895821]
[1749288663209,10.61802121,152.4,152.36,60.31802121]
[1749288668512,10.61802121,152.4,152.36,49.7]
[1749288669102,17.1797319,152.4,152.36,49.7]
[1749288669607,10.61802121,152.39,152.36,49.7]
[1749288670400,17.1802262,152.39,152.36,49.7]
[1749288671828,10.61802121,152.38,152.36,10.08]
[1749288672028,10.61802121,152.37,152.36,10.08]
[1749288672235,10.61802121,152.37,152.32,10.1]
[1749288672435,10.61802121,152.33,152.32,10.1]
[1749288674544,1.5393,152.37,152.32,10.1]
[1749288674545,6.56340246,152.36,152.32,10.1]
[1749288674830,10.61802121,152.33,152.32,10.1]
[1749288675028,10.61802121,152.33,152.3,39.64]
[1749288675329,10.61802121,152.31,152.28,10.1]
[1749288675502,10.61802121,152.31,152.28,49.74]
[1749288676317,10.61802121,152.31,152.28,10.1]
[1749288676523,10.61802121,152.31,152.28,49.74]
[1749288680532,6.56528238,152.32,152.28,56.3068197]
[1749288680533,10.61802121,152.32,152.28,56.3068197]
[1749288682545,10.61802121,152.32,152.28,66.92484091]
[1749288682742,6.56399417,152.35,152.28,66.92484091]
[1749288682915,10.61802121,152.34,152.3,10.61802121]
[1749288684242,10.61802121,152.34,152.3,6.56598818]
[1749288690547,6.56385998,152.35,152.3,6.56598818]
[1749288690548,6.56385998,152.35,152.3,10.61802121]
[1749288690746,10.61802121,152.34,152.3,10.61802121]
[1749288691737,34.10234295,152.37,152.31,10.61802121]
[1749288691931,10.61802121,152.36,152.32,10.61802121]
[1749288692129,10.61802121,152.36,152.32,50.27802121]
[1749288692342,10.61802121,152.37,152.33,10.61802121]
[1749288692641,10.61802121,152.37,152.33,17.18260146]
[1749288693948,10.61802121,152.37,152.33,6.56458025]
[1749288694334,10.61802121,152.37,152.32,56.84303849]
[1749288694542,6.56264043,152.38,152.32,56.84303849]
[1749288694543,10.61802121,152.36,152.32,56.84303849]
[1749288694946,10.61802121,152.35,152.32,39.66]
[1749288696432,17.18186435,152.35,152.32,39.66]
[1749288698055,10.61802121,152.35,152.32,39.66]
[1749288699934,10.61802121,152.35,152.32,46.22509837]
[1749288700134,10.61802121,152.36,152.32,46.22509837]
[1749288700351,10.61802121,152.36,152.32,56.84311958]
[1749288700655,17.18113122,152.37,152.32,56.84311958]
[1749288704163,10.61802121,152.37,152.32,56.84311958]
[1749288704462,10.61802121,152.39,152.35,10.61802121]
[1749288704659,10.61802121,152.39,152.36,39.66]
[1749288706433,8.11875793,152.41,152.36,56.84122778]
[1749288706632,12.17552121,152.41,152.36,66.94122778]
[1749288706833,30.41744711,152.42,152.37,10.61802121]
[1749288707044,30.41744711,152.42,152.38,10.61802121]
[1749288707451,19.7994259,152.42,152.38,10.61802121]
[1749288707963,19.7994259,152.42,152.38,17.18049903]
[1749288709762,10.61802121,152.43,152.38,17.18049903]
[1749288712449,10.61802121,152.43,152.39,10.61802121]
[1749288712774,10.61802121,152.43,152.4,39.64]
[1749288713744,10.61802121,152.44,152.4,50.25802121]
[1749288714249,10.61802121,152.44,152.4,46.20163354]
[1749288714445,1.5015,152.45,152.41,10.61802121]